fUST/lending_fUST_20250828
["ID","MTS","AMOUNT","RATE_DAILY","PERIOD"]
[381790521,1756349442937,-480.0,0.00021394,2]
[381790523,1756349442947,-480.0,0.00021394,2]
[381790525,1756349442956,-374.70383773,0.00021394,2]
[381790527,1756349442965,-480.0,0.00021394,2]
[381790529,1756349442975,-480.0,0.00021394,2]
[381790531,1756349442985,-480.0,0.00021394,2]
[381790533,1756349442994,-485.20204178,0.00021394,2]
[381790535,1756349443003,-480.0,0.00021394,2]
[381790537,1756349443012,-480.0,0.00021394,2]
[381790539,1756349443021,-480.0,0.00021394,2]
[381790541,1756349443031,-480.0,0.00021394,2]
[381790542,1756349443040,-480.0,0.00021394,2]
[381790545,1756349443049,-939.34,0.00021394,2]
[381790546,1756349443059,-480.0,0.00021394,2]
[381790548,1756349443068,-480.0,0.00021394,2]
[381790550,1756349443077,-480.0,0.00021394,2]
[381790552,1756349443086,-480.0,0.00021394,2]
[381790554,1756349443095,-480.0,0.00021394,2]
[381790556,1756349443108,-480.0,0.00021394,2]
[381790559,1756349443118,-480.0,0.00021394,2]
[381790561,1756349443127,-534.5613856,0.00021394,2]
[381790563,1756349443138,-480.0,0.00021394,2]
[381790565,1756349443148,-560.81,0.00021394,2]
[381790567,1756349443160,-480.97,0.00021394,2]
[381790569,1756349443170,-480.0,0.00021394,2]
[381790571,1756349443179,-480.0,0.00021394,2]
[381790573,1756349443189,-480.0,0.00021394,2]
[381790575,1756349443198,-480.0,0.00021394,2]
[381790577,1756349443207,-480.0,0.00021394,2]
[381790579,1756349443216,-480.0,0.00021394,2]
[381790581,1756349443225,-480.0,0.00021394,2]
[381790583,1756349443234,-480.0,0.00021394,2]
[381790585,1756349443243,-522.17,0.00021394,2]
[381790587,1756349443252,-552.53,0.00021394,2]
[381790589,1756349443261,-480.0,0.00021394,2]
[381790591,1756349443271,-480.0,0.00021394,2]
[381790593,1756349443280,-480.0,0.00021394,2]
[381790595,1756349443288,-480.0,0.00021394,2]
[381790597,1756349443297,-405.03008067,0.00021394,2]
[381790599,1756349443306,-481.99757906,0.00021394,2]
[381790601,1756349443316,-480.0,0.00021394,2]
[381790603,1756349443326,-480.0,0.00021394,2]
[381790605,1756349443335,-480.0,0.00021394,2]
[381790607,1756349443344,-480.0,0.00021394,2]
[381790609,1756349443354,-480.0,0.00021394,2]
[381790611,1756349443363,-480.0,0.00021394,2]
[381790613,1756349443372,-480.51336113,0.00021394,2]
[381790615,1756349443382,-601.75,0.00021394,2]
[381790617,1756349443391,-477.10053153,0.00021394,2]
[381790619,1756349443400,-480.0,0.00021394,2]
[381790621,1756349443410,-480.0,0.00021394,2]
[381790623,1756349443419,-480.0,0.00021394,2]
[381790625,1756349443428,-480.0,0.00021394,2]
[381790627,1756349443437,-480.0,0.00021394,2]
[381790629,1756349443446,-480.0,0.00021394,2]
[381790631,1756349443455,-810.47,0.00021394,2]
[381790633,1756349443464,-480.0,0.00021394,2]
[381790635,1756349443473,-1014.44,0.00021394,2]
[381790637,1756349443483,-480.0,0.00021394,2]
[381790639,1756349443492,-480.0,0.00021394,2]
[381790641,1756349443503,-480.0,0.00021394,2]
[381790643,1756349443512,-480.0,0.00021394,2]
[381790645,1756349443522,-480.0,0.00021394,2]
[381790647,1756349443531,-480.0,0.00021394,2]
[381790649,1756349443540,-375.53993349,0.00021394,2]
[381790651,1756349443549,-480.0,0.00021394,2]
[381790653,1756349443559,-480.0,0.00021394,2]
[381790655,1756349443569,-639.07,0.00021394,2]
[381790657,1756349443578,-480.0,0.00021394,2]
[381790659,1756349443587,-480.0,0.00021394,2]
[381790661,1756349443596,-480.0,0.00021394,2]
[381790663,1756349443606,-480.0,0.00021394,2]
[381790665,1756349443615,-480.0,0.00021394,2]
[381790667,1756349443625,-480.0,0.00021394,2]
[381790669,1756349443635,-482.44732218,0.00021394,2]
[381790671,1756349443644,-419.36151118,0.00021394,2]
[381790673,1756349443654,-480.0,0.00021394,2]
[381790675,1756349443663,-480.0,0.00021394,2]
[381790677,1756349443672,-480.1,0.00021394,2]
[381790679,1756349443681,-480.0,0.00021394,2]
[381790681,1756349443690,-480.0,0.00021394,2]
[381790683,1756349443700,-480.0,0.00021394,2]
[381790685,1756349443711,-480.0,0.00021394,2]
[381790687,1756349443720,-513.55522272,0.00021394,2]
[381790689,1756349443729,-480.0,0.00021394,2]
[381790691,1756349443738,-560.83,0.00021394,2]
[381790692,1756349443748,-480.0,0.00021394,2]
[381790693,1756349443758,-453.71105808,0.00021394,2]
[381790695,1756349443767,-584.65,0.00021394,2]
[381790697,1756349443776,-490.43,0.00021394,2]
[381790698,1756349443785,-481.27120373,0.00021394,2]
[381790699,1756349443795,-480.0,0.00021394,2]
[381790700,1756349443804,-1005.67271614,0.00021394,2]
[381790701,1756349443813,-480.0,0.00021394,2]
[381790702,1756349443823,-480.0,0.00021394,2]
[381790703,1756349443832,-480.0,0.00021394,2]
[381790704,1756349443842,-480.0,0.00021394,2]
[381790705,1756349443851,-480.0,0.00021394,2]
[381790706,1756349443860,-480.0,0.00021394,2]
[381790707,1756349443870,-480.0,0.00021394,2]
[381790708,1756349443879,-480.0,0.00021394,2]
[381790709,1756349443888,-717.99,0.00021394,2]
[381790710,1756349443898,-199.99178778,0.00021394,2]
[381790713,1756349443913,-480.0,0.00021394,2]
[381790715,1756349443924,-527.28067725,0.00021394,2]
[381790717,1756349443933,-480.65029271,0.00021394,2]
[381790718,1756349443942,-480.0,0.00021394,2]
[381790719,1756349443952,-480.0,0.00021394,2]
[381790720,1756349443961,-493.91,0.00021394,2]
[381790721,1756349443970,-718.86,0.00021394,2]
[381790723,1756349443980,-480.0,0.00021394,2]
[381790725,1756349443991,-480.0,0.00021394,2]
[381790727,1756349444001,-480.0,0.00021394,2]
[381790729,1756349444010,-198.86115656,0.00021394,2]
[381790731,1756349444019,-481.21307593,0.00021394,2]
[381790732,1756349444029,-480.0,0.00021394,2]
[381790733,1756349444038,-480.0,0.00021394,2]
[381790734,1756349444048,-480.0,0.00021394,2]
[381790735,1756349444057,-644.08,0.00021394,2]
[381790736,1756349444066,-480.0,0.00021394,2]
[381790737,1756349444076,-480.0,0.00021394,2]
[381790738,1756349444085,-480.0,0.00021394,2]
[381790739,1756349444095,-674.06,0.00021394,2]
[381790740,1756349444104,-480.0,0.00021394,2]
[381790741,1756349444113,-576.0,0.00021394,2]
[381790742,1756349444122,-480.0,0.00021394,2]
[381790743,1756349444131,-615.46,0.00021394,2]
[381790744,1756349444141,-480.0,0.00021394,2]
[381790745,1756349444150,-461.62607558,0.00021394,2]
[381790746,1756349444159,-480.0,0.00021394,2]
[381790747,1756349444168,-480.0,0.00021394,2]
[381790748,1756349444177,-480.0,0.00021394,2]
[381790749,1756349444187,-600.87,0.00021394,2]
[381790750,1756349444196,-480.0,0.00021394,2]
[381790751,1756349444205,-480.0,0.00021394,2]
[381790752,1756349444214,-480.0,0.00021395,2]
[381790753,1756349444224,-480.0,0.00021395,2]
[381790754,1756349444233,-480.0,0.00021395,2]
[381790755,1756349444242,-524.08,0.00021395,2]
[381790756,1756349444251,-480.0,0.00021395,2]
[381790757,1756349444260,-480.0,0.00021395,2]
[381790758,1756349444269,-431.50523187,0.00021395,2]
[381790759,1756349444278,-534.05,0.00021395,2]
[381790760,1756349444287,-480.0,0.00021395,2]
[381790761,1756349444296,-480.0,0.00021395,2]
[381790762,1756349444306,-480.0,0.00021395,2]
[381790763,1756349444315,-480.0,0.00021395,2]
[381790764,1756349444324,-480.0,0.00021395,2]
[381790765,1756349444333,-480.0,0.00021395,2]
[381790766,1756349444343,-480.0,0.00021395,2]
[381790767,1756349444352,-480.0,0.00021395,2]
[381790768,1756349444361,-480.0,0.00021395,2]
[381790769,1756349444370,-480.0,0.00021395,2]
[381790770,1756349444379,-480.0,0.00021395,2]
[381790771,1756349444388,-480.0,0.00021395,2]
[381790772,1756349444398,-480.0,0.00021395,2]
[381790773,1756349444407,-1270.08,0.00021395,2]
[381790774,1756349444416,-484.90167854,0.00021395,2]
[381790775,1756349444425,-480.0,0.00021395,2]
[381790776,1756349444434,-757.63,0.00021395,2]
[381790777,1756349444443,-480.0,0.00021395,2]
[381790778,1756349444452,-480.0,0.00021395,2]
[381790779,1756349444461,-480.0,0.00021395,2]
[381790780,1756349444470,-480.0,0.00021395,2]
[381790781,1756349444479,-784.11,0.00021395,2]
[381790782,1756349444489,-480.0,0.00021395,2]
[381790783,1756349444499,-1041.96,0.00021395,2]
[381790784,1756349444508,-723.71,0.00021395,2]
[381790785,1756349444517,-480.0,0.00021395,2]
[381790786,1756349444526,-480.0,0.00021395,2]
[381790787,1756349444536,-151.0,0.00021395,2]
[381790788,1756349444545,-151.0,0.00021395,2]
[381790789,1756349444555,-764.04,0.00021395,2]
[381790790,1756349444565,-151.0,0.00021395,2]
[381790791,1756349444574,-151.0,0.00021395,2]
[381790792,1756349444584,-481.60368627,0.00021395,2]
[381790793,1756349444594,-819.67,0.00021395,2]
[381790794,1756349444604,-481.36109094,0.00021395,2]
[381790795,1756349444613,-480.0,0.00021395,2]
[381790796,1756349444623,-480.0,0.00021395,2]
[381790797,1756349444828,-1033.16,0.00021395,2]
[381790798,1756349444838,-480.8933424,0.00021395,2]
[381790799,1756349444847,-480.0,0.00021395,2]
[381790800,1756349444856,-956.23,0.00021395,2]
[381790801,1756349444865,-762.37,0.00021395,2]
[381790802,1756349444875,-480.0,0.00021395,2]
[381790803,1756349444884,-480.0,0.00021395,2]
[381790804,1756349444893,-480.0,0.00021395,2]
[381790805,1756349444904,-151.0,0.00021395,2]
[381790806,1756349444917,-151.0,0.00021395,2]
[381790807,1756349444926,-151.0,0.00021395,2]
[381790808,1756349444936,-170.300824,0.00021395,2]
[381790809,1756349444946,-170.300824,0.00021395,2]
[381790810,1756349444955,-618.04,0.00021395,2]
[381790811,1756349444964,-170.300824,0.00021395,2]
[381790812,1756349444973,-480.0,0.00021395,2]
[381790813,1756349444986,-170.300824,0.00021395,2]
[381790814,1756349444995,-480.0,0.00021395,2]
[381790815,1756349445006,-480.0,0.00021395,2]
[381790816,1756349445015,-151.0,0.00021395,2]
[381790817,1756349445024,-151.0,0.00021395,2]
[381790818,1756349445033,-1223.98,0.00021395,2]
[381790819,1756349445042,-644.11,0.00021395,2]
[381790820,1756349445051,-151.0,0.00021395,2]
[381790821,1756349445060,-151.0,0.00021395,2]
[381790822,1756349445069,-485.04708374,0.00021395,2]
[381790823,1756349445079,-480.0,0.00021395,2]
[381790824,1756349445088,-867.83,0.00021395,2]
[381790825,1756349445097,-151.0,0.00021395,2]
[381790826,1756349445107,-156.258648,0.00021395,2]
[381790827,1756349445116,-480.0,0.00021395,2]
[381790828,1756349445125,-480.0,0.00021395,2]
[381790829,1756349445135,-480.0,0.00021395,2]
[381790830,1756349445144,-480.0,0.00021395,2]
[381790831,1756349445153,-627.67,0.00021395,2]
[381790832,1756349445162,-480.0,0.00021395,2]
[381790833,1756349445171,-389.80839688,0.00021395,2]
[381790834,1756349445180,-480.0,0.00021395,2]
[381790835,1756349445189,-194.69647437,0.00021395,2]
[381790836,1756349445198,-480.0,0.00021395,2]
[381790837,1756349445207,-983.46,0.00021395,2]
[381790838,1756349445218,-480.0,0.00021395,2]
[381790839,1756349445227,-480.0,0.00021395,2]
[381790840,1756349445237,-151.0,0.00021395,2]
[381790841,1756349445246,-564.62,0.00021395,2]
[381790842,1756349445256,-480.0,0.00021395,2]
[381790843,1756349445266,-521.84,0.00021395,2]
[381790844,1756349445277,-806.627897,0.00021395,2]
[381790845,1756349445286,-480.0,0.00021395,2]
[381790846,1756349445295,-806.627897,0.00021395,2]
[381790847,1756349445304,-480.0,0.00021395,2]
[381790848,1756349445313,-806.627897,0.00021395,2]
[381790849,1756349445323,-151.0,0.00021395,2]
[381790850,1756349445332,-806.627897,0.00021395,2]
[381790851,1756349445342,-151.0,0.00021395,2]
[381790852,1756349445351,-480.0,0.00021395,2]
[381790853,1756349445360,-480.0,0.00021395,2]
[381790854,1756349445369,-173.07890117,0.00021395,2]
[381790855,1756349445378,-151.0,0.00021395,2]
[381790856,1756349445387,-609.77,0.00021395,2]
[381790857,1756349445396,-480.0,0.00021395,2]
[381790858,1756349445405,-480.0,0.00021395,2]
[381790859,1756349445415,-480.0,0.00021395,2]
[381790860,1756349445425,-480.59,0.00021395,2]
[381790861,1756349445435,-337.093938,0.00021395,2]
[381790862,1756349445444,-337.093938,0.00021395,2]
[381790863,1756349445454,-480.0,0.00021395,2]
[381790864,1756349445464,-337.093938,0.00021395,2]
[381790865,1756349445473,-480.0,0.00021395,2]
[381790866,1756349445482,-337.093938,0.00021395,2]
[381790867,1756349445491,-480.0,0.00021395,2]
[381790868,1756349445501,-490.54,0.00021395,2]
[381790869,1756349445511,-1013.23,0.00021395,2]
[381790870,1756349445520,-151.359023,0.00021395,2]
[381790871,1756349445529,-480.0,0.00021395,2]
[381790872,1756349445539,-151.0,0.00021395,2]
[381790873,1756349445548,-151.0,0.00021395,2]
[381790874,1756349445557,-480.0,0.00021395,2]
[381790875,1756349445567,-151.0,0.00021395,2]
[381790876,1756349445577,-480.0,0.00021395,2]
[381790877,1756349445586,-494.35,0.00021395,2]
[381790878,1756349445596,-510.22,0.00021395,2]
[381790879,1756349445605,-1640.47,0.00021395,2]
[381790880,1756349445615,-895.54,0.00021395,2]
[381790881,1756349445625,-480.0,0.00021395,2]
[381790882,1756349445635,-480.0,0.00021395,2]
[381790883,1756349445645,-524.22,0.00021395,2]
[381790884,1756349445655,-616.38,0.00021395,2]
[381790885,1756349445664,-491.83,0.00021395,2]
[381790886,1756349445674,-480.0,0.00021395,2]
[381790887,1756349445683,-1453.93,0.00021395,2]
[381790888,1756349445693,-480.0,0.00021395,2]
[381790889,1756349445703,-1064.12,0.00021395,2]
[381790890,1756349445713,-480.0,0.00021395,2]
[381790891,1756349445722,-752.97,0.00021395,2]
[381790892,1756349445732,-497.24,0.00021395,2]
[381790893,1756349445741,-480.0,0.00021395,2]
[381790894,1756349445750,-480.0,0.00021395,2]
[381790895,1756349445759,-609.69,0.00021395,2]
[381790896,1756349445769,-480.0,0.00021395,2]
[381790897,1756349445779,-227.038205,0.00021395,2]
[381790898,1756349445788,-480.0,0.00021395,2]
[381790899,1756349445798,-836.853506,0.00021395,2]
[381790900,1756349445808,-227.038205,0.00021395,2]
[381790901,1756349445819,-500.0,0.00021395,2]
[381790902,1756349445832,-836.853506,0.00021395,2]
[381790903,1756349445843,-151.0,0.00021395,2]
[381790904,1756349445852,-227.038205,0.00021395,2]
[381790905,1756349445862,-836.853506,0.00021395,2]
[381790906,1756349445871,-151.0,0.00021395,2]
[381790907,1756349445880,-227.038205,0.00021395,2]
[381790908,1756349445889,-836.853506,0.00021395,2]
[381790909,1756349445899,-151.0,0.00021395,2]
[381790910,1756349445912,-151.0,0.00021395,2]
[381790912,1756349445922,-480.0,0.00021395,2]
[381790914,1756349445932,-480.0,0.00021395,2]
[381790918,1756349445942,-159.638801,0.00021395,2]
[381790920,1756349445951,-500.0,0.00021395,2]
[381790923,1756349445960,-500.0,0.00021395,2]
[381790925,1756349445970,-189.916901,0.00021395,2]
[381790926,1756349445980,-189.916901,0.00021395,2]
[381790927,1756349445992,-480.0,0.00021395,2]
[381790928,1756349446003,-480.0,0.00021395,2]
[381790929,1756349446013,-151.0,0.00021395,2]
[381790930,1756349446024,-189.916901,0.00021395,2]
[381790931,1756349446035,-480.0,0.00021395,2]
[381790932,1756349446044,-554.309462,0.00021395,2]
[381790933,1756349446054,-189.916901,0.00021395,2]
[381790934,1756349446065,-480.0,0.00021395,2]
[381790935,1756349446077,-554.309462,0.00021395,2]
[381790936,1756349446087,-554.309462,0.00021395,2]
[381790937,1756349446098,-480.0,0.00021395,2]
[381790938,1756349446108,-554.309462,0.00021395,2]
[381790939,1756349446118,-151.0,0.00021395,2]
[381790941,1756349446128,-151.0,0.00021395,2]
[381790942,1756349446139,-732.14,0.00021395,2]
[381790943,1756349446148,-480.0,0.00021395,2]
[381790944,1756349446158,-151.0,0.00021395,2]
[381790945,1756349446168,-305.772961,0.00021395,2]
[381790946,1756349446177,-480.0,0.00021395,2]
[381790947,1756349446187,-480.0,0.00021395,2]
[381790948,1756349446196,-151.0,0.00021395,2]
[381790949,1756349446205,-305.772961,0.00021395,2]
[381790950,1756349446214,-305.772961,0.00021395,2]
[381790951,1756349446224,-305.772961,0.00021395,2]
[381790952,1756349446233,-480.0,0.00021395,2]
[381790953,1756349446243,-695.29,0.00021395,2]
[381790954,1756349446252,-480.0,0.00021395,2]
[381790955,1756349446261,-555.83,0.00021395,2]
[381790956,1756349446271,-151.0,0.00021395,2]
[381790958,1756349446280,-151.0,0.00021395,2]
[381790960,1756349446289,-151.0,0.00021395,2]
[381790961,1756349446298,-151.0,0.00021395,2]
[381790963,1756349446308,-151.0,0.00021395,2]
[381790965,1756349446317,-151.0,0.00021395,2]
[381790967,1756349446327,-151.0,0.00021395,2]
[381790969,1756349446336,-151.0,0.00021395,2]
[381790970,1756349446347,-151.0,0.00021395,2]
[381790971,1756349446356,-151.0,0.00021395,2]
[381790972,1756349446365,-480.0,0.00021395,2]
[381790973,1756349446375,-480.0,0.00021395,2]
[381790974,1756349446384,-480.0,0.00021395,2]
[381790975,1756349446394,-633.99,0.00021395,2]
[381790976,1756349446403,-828.79,0.00021395,2]
[381790977,1756349446412,-480.0,0.00021395,2]
[381790978,1756349446422,-151.0,0.00021395,2]
[381790979,1756349446432,-151.0,0.00021395,2]
[381790980,1756349446441,-498.09,0.00021395,2]
[381790981,1756349446451,-766.39,0.00021395,2]
[381790982,1756349446461,-582.68,0.00021395,2]
[381790983,1756349446471,-406.79809,0.00021395,2]
[381790984,1756349446480,-406.79809,0.00021395,2]
[381790985,1756349446491,-406.79809,0.00021395,2]
[381790986,1756349446500,-480.0,0.00021395,2]
[381790987,1756349446510,-406.79809,0.00021395,2]
[381790988,1756349446519,-480.0,0.00021395,2]
[381790989,1756349446531,-480.0,0.00021395,2]
[381790990,1756349446540,-480.0,0.00021395,2]
[381790991,1756349446550,-480.0,0.00021395,2]
[381790992,1756349446559,-480.0,0.00021395,2]
[381790993,1756349446570,-151.573767,0.00021395,2]
[381790994,1756349446579,-246.511357,0.00021395,2]
[381790995,1756349446590,-246.511357,0.00021395,2]
[381790996,1756349446599,-480.0,0.00021395,2]
[381790997,1756349446608,-246.511357,0.00021395,2]
[381790998,1756349446618,-246.511357,0.00021395,2]
[381790999,1756349446627,-480.0,0.00021395,2]
[381791000,1756349446636,-480.0,0.00021395,2]
[381791001,1756349446646,-151.0,0.00021395,2]
[381791002,1756349446656,-480.0,0.00021395,2]
[381791003,1756349446665,-682.25,0.00021395,2]
[381791004,1756349446675,-151.0,0.00021395,2]
[381791005,1756349446685,-296.296076,0.00021395,2]
[381791006,1756349446694,-480.0,0.00021395,2]
[381791007,1756349446703,-431.905273,0.00021395,2]
[381791008,1756349446714,-480.0,0.00021395,2]
[381791009,1756349446723,-1016.6,0.00021395,2]
[381791010,1756349446733,-431.905273,0.00021395,2]
[381791011,1756349446743,-480.0,0.00021395,2]
[381791012,1756349446752,-431.905273,0.00021395,2]
[381791013,1756349446761,-431.905273,0.00021395,2]
[381791014,1756349446771,-622.42,0.00021395,2]
[381791015,1756349446780,-270.335238,0.00021395,2]
[381791016,1756349446790,-480.0,0.00021395,2]
[381791017,1756349446799,-480.0,0.00021395,2]
[381791018,1756349446809,-480.0,0.00021395,2]
[381791019,1756349446818,-486.87,0.00021395,2]
[381791020,1756349446827,-473.700338,0.00021395,2]
[381791021,1756349446836,-473.700338,0.00021395,2]
[381791022,1756349446846,-151.0,0.00021395,2]
[381791023,1756349446855,-680.86,0.00021395,2]
[381791024,1756349446865,-151.0,0.00021395,2]
[381791025,1756349446874,-473.700338,0.00021395,2]
[381791026,1756349446885,-770.92,0.00021395,2]
[381791027,1756349446896,-473.700338,0.00021395,2]
[381791028,1756349446910,-480.0,0.00021395,2]
[381791029,1756349446920,-151.0,0.00021395,2]
[381791030,1756349446931,-653.618193,0.00021395,2]
[381791031,1756349446940,-801.88,0.00021395,2]
[381791032,1756349446950,-151.0,0.00021395,2]
[381791033,1756349446959,-653.618193,0.00021395,2]
[381791034,1756349446969,-156.107426,0.00021395,2]
[381791035,1756349446978,-653.618193,0.00021395,2]
[381791036,1756349446989,-653.618193,0.00021395,2]
[381791037,1756349446999,-480.0,0.00021395,2]
[381791038,1756349447008,-727.72,0.00021395,2]
[381791039,1756349447018,-611.15,0.00021395,2]
[381791040,1756349447027,-151.0,0.00021395,2]
[381791041,1756349447037,-287.764219,0.00021395,2]
[381791042,1756349447048,-287.764219,0.00021395,2]
[381791043,1756349447063,-287.764219,0.00021395,2]
[381791044,1756349447074,-287.764219,0.00021395,2]
[381791045,1756349447084,-480.0,0.00021395,2]
[381791046,1756349447095,-213.536918,0.00021395,2]
[381791047,1756349447107,-570.82,0.00021395,2]
[381791048,1756349447125,-213.536918,0.00021395,2]
[381791049,1756349447136,-1216.88,0.00021395,2]
[381791050,1756349447147,-213.536918,0.00021395,2]
[381791051,1756349447157,-480.0,0.00021395,2]
[381791052,1756349447167,-426.783991,0.00021395,2]
[381791053,1756349447178,-480.0,0.00021395,2]
[381791054,1756349447193,-213.536918,0.00021395,2]
[381791055,1756349447261,-426.783991,0.00021395,2]
[381791056,1756349447272,-426.783991,0.00021395,2]
[381791057,1756349447281,-426.783991,0.00021395,2]
[381791058,1756349447290,-480.0,0.00021395,2]
[381791059,1756349447300,-480.0,0.00021395,2]
[381791060,1756349447310,-480.0,0.00021395,2]
[381791061,1756349447320,-480.0,0.00021395,2]
[381791062,1756349447331,-480.0,0.00021395,2]
[381791063,1756349447340,-480.0,0.00021395,2]
[381791064,1756349447350,-480.0,0.00021395,2]
[381791065,1756349447359,-480.0,0.00021395,2]
[381791066,1756349447368,-500.69445024,0.00021395,2]
[381791067,1756349447378,-151.0,0.00021395,2]
[381791068,1756349447388,-480.0,0.00021395,2]
[381791069,1756349447396,-151.0,0.00021395,2]
[381791070,1756349447406,-480.0,0.00021395,2]
[381791071,1756349447415,-745.0,0.00021395,2]
[381791072,1756349447425,-151.0,0.00021395,2]
[381791073,1756349447434,-151.0,0.00021395,2]
[381791074,1756349447444,-151.0,0.00021395,2]
[381791075,1756349447454,-480.0,0.00021395,2]
[381791076,1756349447464,-151.0,0.00021395,2]
[381791077,1756349447474,-535.11,0.00021395,2]
[381791078,1756349447483,-151.0,0.00021395,2]
[381791079,1756349447492,-566.12,0.00021395,2]
[381791080,1756349447501,-480.0,0.00021395,2]
[381791081,1756349447511,-1338.85,0.00021395,2]
[381791082,1756349447520,-480.0,0.00021395,2]
[381791083,1756349447530,-354.314899,0.00021395,2]
[381791084,1756349447540,-754.12,0.00021395,2]
[381791085,1756349447550,-280.623634,0.00021395,2]
[381791086,1756349447559,-354.314899,0.00021395,2]
[381791087,1756349447568,-354.314899,0.00021395,2]
[381791088,1756349447579,-151.0,0.00021395,2]
[381791089,1756349447588,-354.314899,0.00021395,2]
[381791090,1756349447597,-911.207445,0.00021395,2]
[381791091,1756349447607,-911.207445,0.00021395,2]
[381791092,1756349447617,-480.0,0.00021395,2]
[381791093,1756349447627,-972.5,0.00021395,2]
[381791094,1756349447637,-911.207445,0.00021395,2]
[381791095,1756349447647,-911.207445,0.00021395,2]
[381791096,1756349447657,-480.0,0.00021395,2]
[381791097,1756349447666,-480.0,0.00021395,2]
[381791098,1756349447675,-151.0,0.00021395,2]
[381791099,1756349447684,-151.0,0.00021395,2]
[381791100,1756349447693,-151.0,0.00021395,2]
[381791101,1756349447703,-151.0,0.00021395,2]
[381791102,1756349447712,-151.0,0.00021395,2]
[381791103,1756349447721,-480.0,0.00021395,2]
[381791104,1756349447730,-652.45,0.00021395,2]
[381791105,1756349447740,-151.0,0.00021395,2]
[381791106,1756349447749,-480.0,0.00021395,2]
[381791107,1756349447759,-216.656474,0.00021395,2]
[381791108,1756349447768,-480.0,0.00021395,2]
[381791109,1756349447777,-480.0,0.00021395,2]
[381791110,1756349447786,-678.28,0.00021395,2]
[381791111,1756349447795,-151.0,0.00021395,2]
[381791112,1756349447805,-151.0,0.00021395,2]
[381791113,1756349447815,-151.0,0.00021395,2]
[381791114,1756349447824,-480.0,0.00021395,2]
[381791115,1756349447834,-143.99589469,0.00021395,2]
[381791116,1756349448160,-7.00410531,0.00021395,2]
[381791117,1756349448169,-151.0,0.00021395,2]
[381791118,1756349448179,-579.29,0.00021395,2]
[381791119,1756349448189,-480.0,0.00021395,2]
[381791120,1756349448198,-152.526038,0.00021395,2]
[381791121,1756349448207,-151.0,0.00021395,2]
[381791122,1756349448217,-480.0,0.00021395,2]
[381791123,1756349448226,-151.0,0.00021395,2]
[381791124,1756349448235,-480.0,0.00021395,2]
[381791125,1756349448245,-2968.407848,0.00021395,2]
[381791126,1756349448254,-151.0,0.00021395,2]
[381791127,1756349448263,-843.63643,0.00021395,2]
[381791128,1756349448273,-151.0,0.00021395,2]
[381791129,1756349448282,-843.63643,0.00021395,2]
[381791130,1756349448292,-2968.407848,0.00021395,2]
[381791131,1756349448301,-163.348389,0.00021395,2]
[381791132,1756349448310,-2968.407848,0.00021395,2]